bitfinex-derivatives/quotes_ETHF0:USTF0_20250804
["timestamp","ask_amount","ask_price","bid_price","bid_amount"]
[1754350155133,1.6703,3722.2,3722.1,1.72728]
[1754350157228,0.4802,3722.2,3722.1,1.72728]
[1754350157528,0.2935,3722.2,3722.1,1.72728]
[1754350157934,1.3911,3722.2,3722.1,1.72728]
[1754350158130,1.6703,3722.2,3722.1,1.72728]
[1754350158634,1.6703,3722.2,3722.1,1.47788]
[1754350158836,1.6703,3722.2,3722.1,0.53728]
[1754350159227,0.9426,3722.0,3721.9,0.5373]
[1754350159431,1.6703,3722.0,3721.9,0.5373]
[1754350159633,1.6703,3721.8,3721.7,0.4537]
[1754350160131,1.6703,3721.8,3721.7,0.99104]
[1754350161832,1.6703,3721.8,3721.7,0.53734]
[1754350162236,1.6703,3721.8,3721.6,0.53735]
[1754350162435,1.6703,3721.7,3721.6,0.53735]
[1754350163236,1.6703,3721.7,3721.6,0.99105]
[1754350163432,1.6703,3721.7,3721.6,1.72735]
[1754350167042,0.2935,3721.7,3721.6,1.72735]
[1754350167346,0.2935,3721.7,3721.6,1.74455]
[1754350167746,0.7594,3721.7,3721.6,1.72735]
[1754350168040,1.6703,3721.7,3721.6,1.72735]
[1754350170838,1.6703,3721.7,3721.6,0.53735]
[1754350172542,3.74506,3722.3,3722.1,0.53728]
[1754350172750,5.47896,3722.3,3722.2,1.1651]
[1754350173040,0.4591,3722.2,3722.1,0.53728]
[1754350173250,2.74985154,3722.2,3722.1,0.53728]
[1754350173848,0.91558,3722.1,3722.0,0.53729]
[1754350174051,3.08175817,3722.1,3722.0,0.53729]
[1754350174949,2.54447817,3722.1,3722.0,0.53729]
[1754350177351,1.7339,3722.1,3722.0,0.53729]
[1754350179852,1.7339,3721.5,3721.4,1.05408]
[1754350180152,1.7339,3721.5,3721.4,1.24078]
[1754350180351,1.7339,3721.5,3721.4,1.26848]
[1754350180651,1.7339,3721.5,3721.4,1.45278]
[1754350181256,1.7339,3721.5,3721.4,1.67478]
[1754350181750,1.7339,3721.5,3721.4,1.70248]
[1754350184652,1.7339,3721.5,3721.4,0.53738]
[1754350184853,1.7339,3721.5,3721.4,1.26608]
[1754350185053,1.7339,3721.5,3721.4,1.70248]
[1754350188358,1.7339,3721.5,3721.4,0.53738]
[1754350188555,1.7339,3721.5,3721.4,0.97138]
[1754350188755,1.7339,3721.5,3721.4,1.70248]
[1754350188955,1.2748,3721.5,3721.4,1.70248]
[1754350189158,1.7339,3721.5,3721.4,1.70248]
[1754350200364,1.7339,3721.5,3721.4,0.4087]
[1754350200564,0.6757,3721.0,3720.9,0.96749486]
[1754350200771,1.7339,3721.0,3720.9,0.34749486]
[1754350200963,0.6757,3720.6,3720.5,0.53751]
[1754350201167,1.7339,3720.4,3720.2,0.53755]
[1754350201466,1.7339,3720.3,3720.2,0.53755]
[1754350202067,1.7339,3720.3,3720.0,0.289]
[1754350202372,1.6881,3720.2,3720.1,0.53757]
[1754350202969,1.6881,3720.2,3720.1,1.01977]
[1754350205576,1.6881,3720.2,3720.1,0.73077]
[1754350205775,1.6881,3720.2,3720.1,1.01977]
[1754350206671,0.4804,3720.2,3720.1,1.01977]
[1754350206976,3.2078,3720.7,3720.1,1.01977]
[1754350206977,1.2179,3720.6,3720.5,2.25031]
[1754350207471,1.6881,3720.6,3720.5,1.97111]
[1754350207869,1.6881,3720.6,3720.5,0.53751]
[1754350208981,1.6881,3720.6,3720.5,1.97111]
[1754350209682,1.6881,3720.6,3720.5,1.52351]
[1754350210379,1.6881,3720.6,3720.5,1.97111]
[1754350210578,1.6881,3720.6,3720.5,2.25031]
[1754350211380,1.6881,3720.6,3720.5,1.97111]
[1754350212183,1.6881,3720.6,3720.5,1.52351]
[1754350212680,1.6881,3720.6,3720.5,1.97111]
[1754350213673,3.2078,3720.7,3720.5,1.97111]
[1754350213877,3.494,3720.7,3720.6,0.9762]
[1754350214075,3.494,3720.7,3720.6,1.7128]
[1754350214273,4.8959,3720.7,3720.6,1.4336]
[1754350214482,3.8846,3720.7,3720.6,0.289]
[1754350214985,4.8959,3720.7,3720.6,0.289]
[1754350215784,4.8959,3720.7,3720.6,0.9298]
[1754350216184,4.8959,3720.7,3720.6,1.1243]
[1754350216387,4.8959,3720.7,3720.6,0.6767]
[1754350216689,4.8959,3720.7,3720.6,0.4822]
[1754350217482,4.8959,3720.7,3720.6,0.1932]
[1754350217885,1.6881,3720.6,3720.5,0.53751]
[1754350218186,1.78422,3720.5,3720.1,1.34393]
[1754350218386,1.4044,3719.5,3719.4,4.44247]
[1754350218689,1.6881,3719.5,3719.4,4.44247]
[1754350218885,1.6881,3719.5,3719.4,5.17907]
[1754350219280,1.4044,3719.5,3719.3,0.53768]
[1754350219488,1.6881,3719.3,3719.2,0.5377]
[1754350219885,1.0113,3719.2,3718.9,3.2078]
[1754350220084,0.6768,3719.3,3718.4,1.62374]
[1754350220085,0.4903,3718.6,3718.5,0.9854]
[1754350220281,1.2179,3718.6,3718.5,0.5378]
[1754350220486,1.4044,3718.6,3718.5,1.6824]
[1754350220682,1.6881,3718.6,3718.5,1.9714]
[1754350221088,1.1182,3719.2,3718.5,0.7366]
[1754350221286,1.4019,3719.2,3719.0,0.53773]
[1754350221591,1.4019,3719.2,3718.8,0.4476]
[1754350221592,1.6881,3718.9,3718.8,1.2391]
[1754350221980,1.6881,3718.9,3718.8,1.77686]
[1754350222586,1.6881,3718.9,3718.8,1.32926]
[1754350222986,1.6881,3718.9,3718.8,1.77686]
[1754350223384,1.6881,3718.7,3718.5,0.5378]
[1754350223592,0.6768,3718.7,3718.5,0.5378]
[1754350223792,1.6881,3718.6,3718.5,0.5378]
[1754350224592,1.4044,3718.3,3718.2,0.53784]
[1754350224789,0.4903,3718.3,3718.2,1.23484]
[1754350224992,1.6881,3718.3,3718.2,1.80304]
[1754350225192,0.6768,3718.3,3718.1,0.53785]
[1754350225396,0.6768,3718.3,3717.9,0.96827553]
[1754350225397,0.6768,3718.2,3718.0,0.53787]
[1754350225594,1.6881,3718.1,3718.0,0.53787]
[1754350226196,1.6881,3718.1,3718.0,0.92557]
[1754350226391,1.5016,3718.3,3718.2,1.23485]
[1754350226588,0.6356,3718.3,3718.2,2.25065]
[1754350226793,1.2179,3718.3,3718.2,2.25065]
[1754350227198,1.4044,3718.3,3718.2,2.25065]
[1754350227399,1.6881,3718.3,3718.2,2.25065]
[1754350228293,1.6881,3718.3,3718.2,0.73235]
[1754350228491,1.6881,3718.3,3718.2,0.53785]
[1754350228699,0.4903,3718.0,3717.9,3.21896553]
[1754350228998,1.2179,3718.2,3718.1,2.25066]
[1754350229400,1.4044,3718.2,3718.1,2.25066]
[1754350229601,1.6881,3718.2,3718.1,2.25066]
[1754350230403,0.6768,3718.2,3718.1,2.25066]
[1754350230702,1.6881,3718.2,3718.1,2.25066]
[1754350230897,1.6881,3718.2,3718.1,0.53786]
[1754350231401,2.22595,3718.2,3718.0,0.53787]
[1754350231602,1.7723,3718.1,3718.0,1.21547]
[1754350231797,1.7723,3718.1,3718.0,1.51597]
[1754350232203,2.31018,3718.0,3717.9,0.96827553]
[1754350232403,5.51798,3718.0,3717.9,0.96827553]
[1754350232805,4.9801,3718.0,3717.9,0.96827553]
[1754350233104,0.4252,3717.6,3716.8,0.2894]
[1754350233303,0.2068,3717.2,3717.1,1.03421]
[1754350233510,2.06949,3717.2,3717.1,0.9775]
[1754350233803,2.06949,3717.2,3717.1,0.3005]
[1754350234002,0.7288,3717.0,3716.9,0.82682]
[1754350234202,1.2394,3717.0,3716.9,1.2669]
[1754350234406,1.2394,3717.0,3716.9,1.7249]
[1754350234604,1.5315,3717.0,3716.9,1.7249]
[1754350234801,1.2394,3717.0,3716.9,1.7249]
[1754350235001,3.2078,3717.1,3717.0,1.22672]
[1754350235199,3.2078,3717.1,3717.0,2.26292]
[1754350235405,4.4472,3717.1,3717.0,2.26292]
[1754350235803,4.7393,3717.1,3717.0,2.26292]
[1754350236102,0.2184,3717.0,3716.2,3.2078]
[1754350236307,1.2394,3716.3,3716.2,1.97424]
[1754350236705,1.2394,3716.3,3716.2,2.26304]
[1754350236904,1.7723,3716.1,3716.0,0.53816]
[1754350237305,0.7172,3715.9,3715.8,1.32059]
[1754350237605,1.7723,3715.9,3715.8,0.7824]
[1754350238207,0.2921,3716.1,3716.0,1.4361]
[1754350238406,3.2078,3716.3,3716.1,0.53815]
[1754350238700,4.3672,3716.3,3716.2,1.4361]
[1754350238903,4.17283017,3717.1,3716.7,0.2888]
[1754350239105,4.688,3717.1,3717.0,2.26292]
[1754350239307,4.20432927,3717.1,3717.0,2.26292]
[1754350239610,4.49642927,3717.1,3717.0,2.26292]
[1754350239808,5.01232927,3717.1,3717.0,2.26292]
[1754350240306,4.2171,3717.1,3717.0,2.26292]
[1754350240609,3.2078,3717.1,3717.0,2.26292]
[1754350240804,20.86253017,3717.9,3717.8,0.6776]
[1754350241106,20.99619988,3717.9,3717.8,0.6776]
[1754350241305,0.7513,3717.5,3716.9,0.53804]
[1754350241504,0.7513,3717.5,3717.4,0.6776]
[1754350241505,1.7723,3717.5,3717.4,0.6776]
[1754350242709,1.7723,3717.9,3717.8,1.21549]
[1754350242909,21.00774712,3717.9,3717.8,0.6776]
[1754350243307,21.00774712,3717.9,3717.8,0.1925]
[1754350243510,21.00774712,3717.9,3717.8,0.6776]
[1754350243911,2.26394712,3717.9,3717.8,0.9664]
[1754350244206,20.70294712,3717.9,3717.8,0.9664]
[1754350244707,2.26394712,3717.9,3717.8,0.9664]
[1754350245009,21.00574712,3717.9,3717.8,0.6776]
[1754350245211,2.56774712,3717.9,3717.8,0.6776]
[1754350245414,21.00374712,3717.9,3717.8,0.6776]
[1754350245707,0.7513,3717.8,3716.4,0.2894]
[1754350245912,1.021,3717.2,3717.1,0.1925]
[1754350246108,1.81644712,3717.2,3717.1,0.1925]
[1754350246407,3.10574712,3717.2,3717.1,0.1925]
[1754350247210,0.3091,3717.0,3716.2,1.34534]
[1754350247507,0.3091,3717.0,3714.4,0.21114903]
[1754350247508,1.81644712,3716.9,3716.8,0.2894]
[1754350247714,0.53809,3716.6,3716.2,0.2888]
[1754350247913,1.021,3716.4,3716.3,1.02322]
[1754350248108,0.2921,3717.4,3716.4,1.34527]
[1754350248314,1.51438284,3717.3,3717.2,0.73049]
[1754350248513,1.51438284,3717.3,3717.2,1.01989]
[1754350248514,0.79718284,3717.3,3717.2,1.01989]
[1754350248909,1.08928284,3717.3,3717.2,1.01989]
[1754350251213,1.59968284,3717.3,3717.2,1.01989]
[1754350251410,2.05237284,3717.3,3717.1,0.53799]
[1754350251715,1.7723,3716.9,3716.8,1.01995]
[1754350253412,1.0093,3716.9,3716.8,1.01995]
[1754350253619,0.2921,3716.9,3716.8,1.01995]
[1754350254410,1.1764,3717.4,3717.3,1.01988]
[1754350254612,1.35993159,3717.4,3717.3,1.01988]
[1754350254817,1.95583159,3717.4,3717.3,1.01988]
[1754350257325,1.95583159,3717.4,3717.3,0.1925]
[1754350257525,0.7513,3717.1,3716.1,0.2894]
[1754350257823,1.7723,3716.9,3716.8,1.01995]
[1754350260126,2.56936786,3716.9,3716.8,1.01995]
[1754350260327,2.76268892,3716.9,3716.8,1.01995]
[1754350260527,2.76268892,3716.9,3715.9,0.4234]
[1754350260528,1.7723,3716.0,3715.9,0.4234]
[1754350260929,2.56938552,3716.0,3715.9,0.1957]
[1754350261328,1.7723,3715.6,3715.5,0.9781]
[1754350261526,2.56938552,3715.6,3715.5,0.995]
[1754350261826,2.56938552,3715.6,3715.5,1.2223]
[1754350262029,0.79708552,3715.6,3715.5,1.5285]
[1754350262229,18.71434274,3716.1,3715.6,1.34557]
[1754350262425,18.8271,3716.1,3716.0,1.5166]
[1754350262727,20.29442855,3716.1,3716.0,2.05477]
[1754350262922,20.95022855,3716.1,3716.0,2.05477]
[1754350263124,21.23942855,3716.1,3716.0,0.193]
[1754350263329,1.4391,3715.8,3715.7,1.215]
[1754350263531,2.52516095,3715.8,3715.7,1.5213]
[1754350263732,0.79686095,3715.8,3715.7,2.0548]
[1754350264230,2.52516095,3715.8,3715.7,1.2104]
[1754350264834,1.7283,3715.7,3715.6,0.53821]
[1754350265027,2.52516095,3715.7,3715.6,0.53821]
[1754350265233,0.79686095,3715.7,3715.6,2.05511]
[1754350265625,1.76396095,3715.7,3715.5,0.53823]
[1754350265833,2.52270992,3715.6,3715.5,1.24963]
[1754350266124,2.52270992,3715.6,3715.5,0.53823]
[1754350266329,2.52270992,3715.6,3715.5,1.45933]
[1754350266530,2.52270992,3715.6,3715.5,0.73123]
[1754350266925,2.52270992,3715.6,3715.5,1.74893]
[1754350267120,0.79440992,3715.6,3715.5,2.05513]
[1754350267529,1.7283,3715.9,3715.8,1.7489]
[1754350267725,1.10009636,3715.9,3715.8,1.7489]
[1754350267924,0.79399636,3715.9,3715.8,2.0551]
[1754350268127,1.57729636,3715.9,3715.8,2.0551]
[1754350268326,2.03239636,3715.9,3715.8,2.0551]
[1754350268527,2.23309636,3715.9,3715.8,2.0551]
[1754350268933,2.23309636,3715.9,3715.8,1.7489]
[1754350269133,2.52229636,3715.9,3715.8,1.7489]
[1754350269533,2.52229636,3715.9,3715.8,0.5382]
[1754350270040,2.52229636,3715.9,3715.8,0.7312]
[1754350270229,2.52229636,3715.9,3715.8,0.9254]
[1754350270429,2.52204618,3715.9,3715.8,1.2317]
[1754350270929,1.77774618,3715.9,3715.8,1.7489]
[1754350271130,0.79374618,3715.9,3715.8,1.7489]
[1754350271334,0.935,3716.2,3716.1,1.02195]
[1754350271534,2.03488635,3716.2,3716.1,1.74885]
[1754350272235,1.7283,3716.2,3715.7,1.34552]
[1754350272434,1.7283,3716.2,3715.5,0.3062]
[1754350272435,1.7283,3715.9,3715.8,0.9254]
[1754350272635,2.52204183,3715.9,3715.8,0.9254]
[1754350273032,2.52204183,3715.9,3715.8,0.5382]
[1754350273235,1.7283,3715.9,3715.8,0.9254]
[1754350274037,1.7283,3715.9,3715.8,1.7489]
[1754350274235,1.7283,3715.9,3715.8,1.2107]
[1754350274726,0.53816,3716.1,3715.9,0.53818]
[1754350274931,1.77656,3716.1,3716.0,1.2107]
[1754350275135,2.57032973,3716.1,3716.0,1.2107]
[1754350275430,3.06022973,3716.1,3716.0,1.2107]
[1754350275630,2.52206973,3716.1,3716.0,1.2107]
[1754350275839,1.7283,3716.1,3716.0,1.2107]
[1754350276732,0.7833,3716.1,3716.0,1.5169]
[1754350276928,1.2732,3716.1,3716.0,1.5169]
[1754350277135,1.7283,3716.1,3716.0,1.5169]
[1754350277538,1.7283,3716.1,3716.0,1.2107]
[1754350278640,0.6779,3716.1,3715.9,0.53818]
[1754350278839,0.6779,3716.1,3716.0,0.9044]
[1754350279040,0.6779,3716.1,3716.0,1.2107]
[1754350279537,0.6779,3715.8,3715.7,0.5382]
[1754350279738,1.7283,3715.8,3715.7,1.7489]
[1754350280633,1.21605,3716.2,3716.1,0.53815]
[1754350281036,1.67115,3716.2,3716.1,0.53815]
[1754350281234,2.26645,3716.2,3716.1,0.53815]
[1754350281742,1.7283,3716.2,3716.1,1.44255]
[1754350281937,1.7283,3716.2,3716.1,1.74885]
[1754350282139,1.7283,3716.2,3716.1,1.2107]
[1754350282438,1.7283,3716.2,3716.1,0.9211]
[1754350282639,1.7283,3716.2,3716.1,0.6935]
[1754350282938,1.7283,3716.2,3716.1,0.3872]
[1754350284436,1.0504,3716.1,3716.0,0.53816]
[1754350284742,2.26647,3716.0,3715.9,0.53817]
[1754350284938,0.1907,3715.6,3715.5,1.45934]
[1754350285138,1.7283,3715.6,3715.5,1.74894]
[1754350286145,1.7283,3716.0,3715.9,1.74888]
[1754350286443,1.7283,3716.0,3715.9,0.92538]
[1754350286740,1.7283,3716.0,3715.9,1.23168]
[1754350287043,1.7283,3715.0,3714.9,2.95068746]
[1754350287744,1.50535,3715.5,3715.4,0.6768]
[1754350287942,1.50535,3715.5,3715.0,1.34579]
[1754350287943,0.4772,3715.6,3715.5,1.52124]
[1754350288140,0.4772,3715.6,3715.5,0.983]
[1754350288141,0.6779,3715.6,3715.5,0.983]
[1754350288435,1.7283,3715.5,3715.4,1.21504]
[1754350288639,0.984,3715.5,3715.4,2.28774]
[1754350289046,1.7283,3715.5,3715.4,1.98154]
[1754350290241,1.7283,3715.5,3715.4,1.4433]
[1754350290447,1.7283,3715.0,3714.9,2.95068746]
[1754350291749,1.7283,3715.0,3714.9,1.98998746]
[1754350292141,1.7283,3715.0,3714.9,2.19658746]
[1754350292338,1.7283,3715.0,3714.9,2.65848746]
[1754350292539,1.7283,3715.0,3714.9,1.65825746]
[1754350293144,1.7283,3715.0,3714.9,2.41305746]
[1754350293546,1.7283,3715.0,3714.9,2.72195746]
[1754350293746,2.24736,3715.4,3715.3,1.98427]
[1754350293947,3.04157258,3715.4,3715.3,1.98427]
[1754350294148,0.9782,3715.7,3715.6,1.02952]
[1754350294350,1.96501285,3715.7,3715.6,1.98422]
[1754350294548,1.7665063,3715.7,3715.6,2.29312]
[1754350295441,2.0675063,3715.7,3715.6,2.29312]
[1754350295650,2.5033063,3715.7,3715.6,2.29312]
[1754350296154,1.7091,3715.7,3715.6,1.69132]
[1754350296352,1.7091,3715.7,3715.6,1.98422]
[1754350297157,0.9723,3715.7,3715.6,2.29312]
[1754350297850,1.7091,3715.7,3715.6,2.29312]
[1754350298055,0.4998,3716.0,3715.9,1.22937]
[1754350298255,0.19840544,3716.0,3715.9,1.53828]
[1754350298750,0.7802,3716.6,3716.5,0.53809]
[1754350298961,0.99247167,3716.6,3716.5,2.29299]
[1754350299254,0.69820282,3716.6,3716.5,2.29299]
[1754350299463,0.69820282,3716.6,3716.5,1.98409]
[1754350299652,0.69820282,3716.6,3716.5,2.29299]
[1754350300048,0.69822776,3716.6,3716.5,2.29299]
[1754350300255,0.49352776,3716.6,3716.5,2.29299]
[1754350300454,0.19842776,3716.6,3716.5,2.29299]
[1754350300958,0.2951,3716.9,3716.8,1.22925]
[1754350301154,1.90748445,3716.9,3716.8,0.53805]
[1754350301460,1.7091,3716.5,3716.4,1.98411]
[1754350301757,18.593,3717.5,3716.7,0.53807]
[1754350301758,0.19838445,3716.8,3716.7,0.53807]
[1754350301957,0.49348445,3716.8,3716.7,1.98407]
[1754350302359,0.19838445,3717.0,3716.9,1.22924]
[1754350302560,1.17068445,3717.0,3716.9,1.98404]
[1754350303059,0.24539771,3717.5,3717.4,2.29286]
[1754350303253,1.27842974,3717.9,3717.8,0.53791]
[1754350303560,1.7091,3717.7,3717.6,1.22912]
[1754350303755,0.9723,3717.7,3717.6,2.29282]
[1754350304155,0.4998,3717.7,3717.6,2.29282]
[1754350304860,0.4998,3717.7,3717.6,1.98392]
[1754350305064,0.7802,3717.7,3717.6,1.98392]
[1754350305363,1.7091,3717.7,3717.6,1.98392]
[1754350306261,0.9723,3717.7,3717.6,1.98392]
[1754350306462,0.4998,3717.7,3717.6,1.98392]
[1754350306664,1.7091,3718.0,3717.9,1.98389]
[1754350307062,1.95449771,3718.4,3718.3,0.73773]
[1754350307262,0.6772,3717.8,3717.7,1.98392]
[1754350307560,1.7091,3717.8,3717.7,1.98392]
[1754350307962,1.7091,3717.7,3717.6,0.53793]
[1754350308463,1.7091,3717.6,3717.3,0.53798]
[1754350308762,1.7091,3717.4,3717.3,0.53798]
[1754350308965,0.4851,3717.0,3716.9,1.49944]
[1754350309156,1.7091,3717.0,3716.9,1.69934]
[1754350309768,1.7091,3717.0,3716.9,1.98404]
[1754350309969,1.7091,3717.0,3716.9,1.22924]
[1754350310162,1.7091,3717.0,3716.9,1.98404]
[1754350310561,1.7091,3717.0,3716.9,0.53804]
[1754350311064,0.6772,3717.0,3716.8,0.53804]
[1754350311256,1.7091,3716.9,3716.8,0.53804]
[1754350311463,1.0319,3716.8,3716.7,0.53806]
[1754350311661,1.7091,3716.8,3716.7,0.53806]
[1754350312762,0.7802,3717.2,3717.1,1.2292]
[1754350313065,0.9723,3717.2,3717.1,1.984]
[1754350313368,1.7091,3717.2,3717.1,1.984]
[1754350314766,1.7091,3717.2,3717.1,0.7379]
[1754350315766,1.7091,3717.2,3717.1,1.984]
[1754350318974,1.7091,3717.2,3717.1,0.538]
[1754350319973,0.83307,3717.4,3717.3,0.53797]
[1754350320168,2.2471,3717.2,3717.1,0.538]
[1754350320372,2.24711,3717.1,3717.0,0.94451]
[1754350320572,1.7091,3717.1,3717.0,0.94451]
[1754350320768,1.7091,3717.1,3717.0,0.53801]
[1754350321469,1.709,3717.1,3717.0,1.97521]
[1754350323074,2.2461,3717.2,3717.1,0.538]
[1754350324072,1.7081,3717.2,3717.1,0.9195]
[1754350324280,0.7616,3717.2,3717.1,1.9483]
[1754350324577,1.4169,3717.2,3717.1,2.2434]
[1754350324777,1.7081,3717.2,3717.1,2.2434]
[1754350325077,1.7081,3717.2,3717.1,0.7272]
[1754350326181,1.7081,3717.2,3717.1,1.9483]
[1754350331381,1.95502,3716.4,3716.2,0.53813]
[1754350331582,0.6719,3716.3,3715.8,0.7212]
[1754350331785,0.6719,3715.9,3715.8,1.9485]
[1754350331983,1.7081,3715.9,3715.8,1.4103]
[1754350332186,1.7081,3715.9,3715.8,0.6891]
[1754350332788,1.7081,3715.9,3715.8,0.3815]
[1754350332984,1.7081,3715.9,3715.8,0.1892]
[1754350333285,1.1254,3715.2,3715.1,1.9486]
[1754350333486,1.7081,3715.2,3715.1,1.9486]
[1754350333877,0.9634,3715.2,3715.1,1.9596]
[1754350334083,0.9634,3715.2,3715.1,2.2437]
[1754350335089,1.7081,3715.2,3715.1,2.2437]
[1754350335287,1.7081,3715.2,3715.1,1.9486]
[1754350336089,1.7081,3715.2,3715.1,1.4103]
[1754350336282,1.7081,3715.0,3714.9,0.96905746]
[1754350336482,1.4169,3715.0,3714.9,2.67445746]
[1754350336687,1.7081,3715.0,3714.9,2.37935746]
[1754350337083,0.2915,3715.0,3714.9,2.37935746]
[1754350337491,0.9634,3715.0,3714.9,2.37935746]
[1754350337687,1.7081,3715.0,3714.9,2.37935746]
[1754350338484,2.24641,3715.0,3714.9,0.96905746]
[1754350338687,1.7081,3715.0,3714.9,0.96905746]
[1754350338886,1.7081,3715.0,3714.9,2.37935746]
[1754350339582,1.7081,3715.0,3714.9,1.46895746]
[1754350339788,1.7081,3715.0,3714.9,2.37935746]
[1754350340386,1.34551,3715.8,3714.9,2.37935746]
[1754350340693,1.7081,3715.3,3715.2,0.53827]
[1754350341190,1.0362,3715.0,3714.9,1.50737746]
[1754350341397,1.7081,3715.0,3714.9,1.50737746]
[1754350341689,1.7081,3715.0,3714.9,0.96905746]
[1754350346294,1.7081,3715.0,3714.9,1.65815746]
[1754350346494,1.7081,3715.0,3714.9,2.37935746]
[1754350346992,1.4169,3715.0,3714.9,2.37935746]
[1754350347193,1.2249,3715.0,3714.9,2.37935746]
[1754350347392,1.7081,3715.0,3714.9,2.37935746]
[1754350347697,0.9634,3715.0,3714.9,2.37935746]
[1754350347997,2.24641,3715.0,3714.9,2.37935746]
[1754350348990,2.24641,3715.0,3714.9,0.96905746]
[1754350352792,1.20731,3715.1,3715.0,1.4061]
[1754350352997,0.53829,3715.2,3715.1,1.2336]
[1754350353296,1.31009,3715.2,3715.1,2.2406]
[1754350353500,1.74999,3715.2,3715.1,2.2406]
[1754350353691,2.24919,3715.2,3715.1,1.4061]
[1754350354197,2.24921,3715.0,3714.9,0.96905746]
[1754350357901,2.24921,3715.0,3714.9,2.37515746]
[1754350358200,2.24921,3715.0,3714.9,0.96905746]
[1754350361404,1.20748,3713.9,3713.8,1.95898]
[1754350361601,2.24938,3713.9,3713.8,1.7023]
[1754350362803,2.24938,3713.9,3713.8,0.4954]
[1754350363206,1.0419,3713.4,3712.8,0.53863]
[1754350363510,0.3878,3713.5,3713.4,1.7023]
[1754350363704,0.79398163,3713.5,3713.4,1.7023]
[1754350363904,1.28151,3713.7,3713.4,1.7023]
[1754350363905,0.53851,3713.7,3713.4,1.23383]
[1754350364202,0.53848,3713.9,3713.8,1.7023]
[1754350364403,0.79390336,3713.9,3713.8,1.7023]
[1754350364808,1.48060336,3713.9,3713.8,1.7023]
[1754350365309,2.50480336,3713.9,3713.8,1.7023]
[1754350365806,0.79390336,3713.9,3713.8,1.7023]
[1754350366205,0.92627,3714.0,3713.9,1.5074]
[1754350366411,1.18160784,3714.0,3713.9,1.7023]
[1754350367304,1.46280784,3714.0,3713.9,1.7023]
[1754350367509,2.50470784,3714.0,3713.9,1.7023]
[1754350372111,2.50470784,3714.0,3713.9,1.4205]
[1754350372306,1.0419,3713.9,3713.1,1.34646]
[1754350372507,20.0458,3714.1,3714.0,1.1243]
[1754350372707,24.3503896,3714.1,3714.0,1.4205]
[1754350372907,24.9078296,3714.1,3714.0,1.7023]
[1754350373407,1.20749,3713.9,3713.8,0.4954]
[1754350373704,1.95049,3713.9,3713.8,1.4205]
[1754350373912,1.412,3713.9,3713.8,1.7023]
[1754350374101,1.7109,3713.9,3713.8,1.7023]
[1754350374304,1.271,3713.9,3713.8,1.7023]
[1754350374508,1.271,3713.5,3713.4,1.4205]
[1754350374807,18.653,3713.6,3713.5,1.51563]
[1754350375009,0.79352786,3713.6,3713.5,1.51563]
[1754350375209,18.656,3713.7,3713.5,2.24083]
[1754350375510,18.656,3713.7,3713.6,0.6953]
[1754350375710,18.656,3713.7,3713.6,1.7023]
[1754350375902,0.9679,3714.0,3713.9,1.23376]
[1754350376106,20.42044928,3714.0,3713.9,2.24076]
[1754350377813,0.79354928,3714.0,3713.9,2.24076]
[1754350378007,3.2078,3714.1,3714.0,1.2206]
[1754350378207,3.2078,3714.1,3714.0,1.7023]
[1754350378403,3.2078,3714.5,3714.4,1.4205]
[1754350378706,22.65551711,3714.5,3714.4,1.7023]
[1754350378908,3.2078,3714.5,3714.4,1.7023]
[1754350379307,18.655,3714.8,3714.7,0.6953]
[1754350379504,0.79401571,3714.8,3714.7,1.7023]
[1754350379708,0.96503017,3715.4,3715.0,0.53831]
[1754350379910,0.53824,3715.6,3715.5,1.6212]
[1754350380214,1.7109,3715.6,3715.5,1.6212]
[1754350380413,0.9679,3715.6,3715.5,1.6212]
[1754350380713,1.7109,3715.9,3715.8,2.1594]
[1754350381310,1.7109,3715.9,3715.8,1.6212]
[1754350381613,1.7109,3715.9,3715.8,1.4205]
[1754350381913,2.25862,3715.0,3714.9,1.2107]
[1754350382112,2.25862,3715.0,3714.9,0.4722]
[1754350382311,2.25862,3715.0,3714.9,0.1897]
[1754350384012,1.23696,3714.7,3714.6,1.2107]
[1754350384219,2.25866,3714.7,3714.6,1.2107]
[1754350384511,2.25866,3714.7,3714.6,1.2663]
[1754350384712,2.25866,3714.7,3714.6,1.2107]
[1754350386316,1.9779,3714.4,3714.3,0.5626]
[1754350386517,2.2587,3714.4,3714.3,0.4722]
[1754350386716,1.23706,3714.0,3713.9,0.8717]
[1754350387016,2.25876,3714.0,3713.9,1.3011]
[1754350387216,2.25876,3714.0,3713.9,0.1897]
[1754350387418,2.2588,3713.7,3713.6,1.2107]
[1754350387718,2.25883,3713.5,3713.4,0.1897]
[1754350388715,0.74306,3713.3,3713.2,0.4722]
[1754350389020,0.94886,3713.3,3713.2,1.3011]
[1754350389412,3.2078,3714.0,3713.6,0.4722]
[1754350389618,3.2078,3714.0,3713.8,1.83957]
[1754350389917,3.2078,3714.0,3713.9,1.3011]
[1754350390412,0.53842,3714.3,3713.9,1.06626]
[1754350390617,1.24252,3714.3,3714.2,1.3011]
[1754350391009,2.25872,3714.3,3714.2,1.2107]
[1754350391212,2.25872,3714.3,3714.2,1.2663]
[1754350391416,2.25872,3714.3,3714.2,1.3011]
[1754350392913,1.7203,3714.3,3713.8,0.53848]
[1754350393115,1.7203,3714.3,3713.4,3.2078]
[1754350393116,0.6986,3714.0,3713.9,0.9016]
[1754350393320,0.53844,3714.2,3713.9,0.5278]
[1754350393517,0.53844,3714.2,3714.1,0.8369]
[1754350393713,0.53844,3714.2,3714.1,1.3011]
[1754350394819,1.53084,3714.2,3714.1,1.3011]
[1754350395118,2.25874,3714.2,3714.1,1.3011]